[Event "Live Chess"]
[Site "Chess.com"]
[Date "2024.06.01"]
[Round "-"]
[White "yarek"]
[Black "willc-h99"]
[Result "0-1"]
[WhiteElo "1732"]
[BlackElo "2642"]
[TimeControl "300"]
[EndTime "10:48:36 PDT"]
[Termination "willc-h99 won on time"]

1. e4 {[%clk 0:04:56.2]} 1... g6 {[%clk 0:04:58.4]} 2. d4 {[%clk 0:04:54.6]}
2... Bg7 {[%clk 0:04:57.7]} 3. Be3 {[%clk 0:04:53.4]} 3... a6 {[%clk 0:04:56.9]}
4. f4 {[%clk 0:04:49.6]} 4... c6 {[%clk 0:04:54.3]} 5. Nf3 {[%clk 0:04:48.8]}
5... d5 {[%clk 0:04:53.3]} 6. e5 {[%clk 0:04:46.8]} 6... Bg4 {[%clk 0:04:49.7]}
7. Be2 {[%clk 0:04:45.2]} 7... Nh6 {[%clk 0:04:48.1]} 8. O-O {[%clk 0:04:43.2]}
8... Nf5 {[%clk 0:04:46.6]} 9. Bf2 {[%clk 0:04:40.4]} 9... e6 {[%clk 0:04:43.9]}
10. h3 {[%clk 0:04:37.4]} 10... Bxf3 {[%clk 0:04:43.1]} 11. Bxf3 {[%clk
0:04:36.1]} 11... h5 {[%clk 0:04:43]} 12. Nd2 {[%clk 0:04:09.4]} 12... Nd7
{[%clk 0:04:36]} 13. c4 {[%clk 0:04:07.6]} 13... h4 {[%clk 0:04:32.5]} 14. cxd5
{[%clk 0:04:05.3]} 14... cxd5 {[%clk 0:04:30.6]} 15. Nb3 {[%clk 0:04:02.3]}
15... Bf8 {[%clk 0:04:29]} 16. Nc5 {[%clk 0:03:52.8]} 16... Nxc5 {[%clk
0:04:10.5]} 17. dxc5 {[%clk 0:03:52.7]} 17... Be7 {[%clk 0:04:02.8]} 18. Qa4+
{[%clk 0:03:50.4]} 18... Qd7 {[%clk 0:04:00.5]} 19. Qa5 {[%clk 0:03:30.5]} 19...
O-O {[%clk 0:03:56.1]} 20. Rfd1 {[%clk 0:03:20.7]} 20... Rfc8 {[%clk 0:03:52.7]}
21. b4 {[%clk 0:02:57.6]} 21... Bd8 {[%clk 0:03:26.6]} 22. Qa3 {[%clk
0:02:54.9]} 22... a5 {[%clk 0:03:24.9]} 23. Qb2 {[%clk 0:02:36]} 23... axb4
{[%clk 0:03:19.8]} 24. Qxb4 {[%clk 0:02:34.2]} 24... Ra4 {[%clk 0:03:18.1]} 25.
Qd2 {[%clk 0:02:30.8]} 25... Ba5 {[%clk 0:03:16.1]} 26. Qc1 {[%clk 0:02:25.3]}
26... Qb5 {[%clk 0:03:06.9]} 27. Rb1 {[%clk 0:02:21.7]} 27... Qa6 {[%clk
0:03:00.1]} 28. Rb2 {[%clk 0:01:58.9]} 28... Rc4 {[%clk 0:02:54.8]} 29. Qb1
{[%clk 0:01:51.9]} 29... Rc7 {[%clk 0:02:26.2]} 30. Be2 {[%clk 0:01:47.6]} 30...
Bc3 {[%clk 0:02:15.4]} 31. Bxc4 {[%clk 0:01:44]} 31... Qxc4 {[%clk 0:02:05.6]}
32. Rxb7 {[%clk 0:01:42.3]} 32... Rxc5 {[%clk 0:02:04.7]} 33. Rb8+ {[%clk
0:01:06.3]} 33... Kg7 {[%clk 0:02:02.9]} 34. Qb7 {[%clk 0:00:50.4]} 34... Qxf4
{[%clk 0:01:24.7]} 35. Qa8 {[%clk 0:00:37.3]} 35... Bxe5 {[%clk 0:01:16.9]} 36.
Rg8+ {[%clk 0:00:35.2]} 36... Kh7 {[%clk 0:01:11.6]} 37. Bxc5 {[%clk 0:00:13.2]}
37... d4 {[%clk 0:00:58.9]} 38. Bxd4 {[%clk 0:00:09.5]} 38... Bxd4+ {[%clk
0:00:57.3]} 39. Rxd4 {[%clk 0:00:08]} 39... Qxd4+ {[%clk 0:00:56.4]} 40. Kh2
{[%clk 0:00:06.6]} 40... Qf4+ {[%clk 0:00:54.7]} 41. Kg1 {[%clk 0:00:05]} 41...
Qd4+ {[%clk 0:00:51.9]} 42. Kh2 {[%clk 0:00:04.2]} 42... Ng3 {[%clk 0:00:40.4]}
0-1

[Event "Live Chess"]
[Site "Chess.com"]
[Date "2024.06.01"]
[Round "-"]
[White "WilliamofOrange16th"]
[Black "WelshTiger"]
[Result "0-1"]
[WhiteElo "1943"]
[BlackElo "2535"]
[TimeControl "300"]
[EndTime "10:49:10 PDT"]
[Termination "WelshTiger won by resignation"]

1. e4 {[%clk 0:04:58.6]} 1... c5 {[%clk 0:04:52.7]} 2. Nc3 {[%clk 0:04:55.7]}
2... e6 {[%clk 0:04:48.6]} 3. g3 {[%clk 0:04:55]} 3... Nc6 {[%clk 0:04:41.7]} 4.
Bg2 {[%clk 0:04:53.8]} 4... g6 {[%clk 0:04:36.2]} 5. d3 {[%clk 0:04:52.6]} 5...
Bg7 {[%clk 0:04:35]} 6. Be3 {[%clk 0:04:51.8]} 6... d6 {[%clk 0:04:33.8]} 7. Qd2
{[%clk 0:04:50.9]} 7... h6 {[%clk 0:04:32.1]} 8. h4 {[%clk 0:04:38.6]} 8... Nge7
{[%clk 0:04:30.2]} 9. h5 {[%clk 0:04:37.8]} 9... g5 {[%clk 0:04:27.4]} 10. f4
{[%clk 0:04:36.9]} 10... gxf4 {[%clk 0:04:24.2]} 11. gxf4 {[%clk 0:04:33.1]}
11... f5 {[%clk 0:04:20.6]} 12. Nge2 {[%clk 0:04:22.9]} 12... Nd4 {[%clk
0:04:18.5]} 13. Nd1 {[%clk 0:04:13.2]} 13... Nxe2 {[%clk 0:04:16.3]} 14. Qxe2
{[%clk 0:04:11]} 14... Rg8 {[%clk 0:04:11.2]} 15. Bh3 {[%clk 0:04:06.5]} 15...
Bd7 {[%clk 0:04:04.1]} 16. c3 {[%clk 0:04:05.6]} 16... Qa5 {[%clk 0:04:01]} 17.
Bd2 {[%clk 0:04:00.7]} 17... Qa6 {[%clk 0:03:59.2]} 18. Nf2 {[%clk 0:03:56]}
18... O-O-O {[%clk 0:03:53.1]} 19. Be3 {[%clk 0:03:43.8]} 19... Bf6 {[%clk
0:03:48.3]} 20. d4 {[%clk 0:03:41.6]} 20... Qxe2+ {[%clk 0:03:46.6]} 21. Kxe2
{[%clk 0:03:41.5]} 21... cxd4 {[%clk 0:03:41.7]} 22. cxd4 {[%clk 0:03:38.7]}
22... Bc6 {[%clk 0:03:27.9]} 23. Rhc1 {[%clk 0:03:33.5]} 23... Kb8 {[%clk
0:03:26.2]} 24. e5 {[%clk 0:03:30.3]} 24... Bh4 {[%clk 0:03:21.3]} 25. a4 {[%clk
0:03:13.6]} 25... Nd5 {[%clk 0:03:19.9]} 26. Bd2 {[%clk 0:03:06.6]} 26... Rg3
{[%clk 0:03:08.2]} 27. Rh1 {[%clk 0:03:04.1]} 27... Rb3 {[%clk 0:02:56.9]} 28.
Ra2 {[%clk 0:02:56.4]} 28... Nb4 {[%clk 0:02:45.2]} 29. Bxb4 {[%clk 0:02:54.3]}
29... Rxb4 {[%clk 0:02:45.1]} 30. Nd3 {[%clk 0:02:47.3]} 30... Rxd4 {[%clk
0:02:42.3]} 31. Bxf5 {[%clk 0:02:46.3]} 31... Bxh1 {[%clk 0:02:38.4]} 0-1

[Event "Live Chess"]
[Site "Chess.com"]
[Date "2024.06.01"]
[Round "-"]
[White "SirGerhard"]
[Black "matt1979"]
[Result "1-0"]
[WhiteElo "2771"]
[BlackElo "1363"]
[TimeControl "300"]
[EndTime "10:49:22 PDT"]
[Termination "SirGerhard won by resignation"]

1. d4 {[%clk 0:04:58.2]} 1... e6 {[%clk 0:04:57.9]} 2. e4 {[%clk 0:04:57]} 2...
d5 {[%clk 0:04:55.8]} 3. Nd2 {[%clk 0:04:56.3]} 3... Nf6 {[%clk 0:04:53]} 4. e5
{[%clk 0:04:54.6]} 4... Nfd7 {[%clk 0:04:52]} 5. Bd3 {[%clk 0:04:52.3]} 5... c5
{[%clk 0:04:50.7]} 6. c3 {[%clk 0:04:51.8]} 6... Nc6 {[%clk 0:04:45.6]} 7. Ne2
{[%clk 0:04:50.4]} 7... Qb6 {[%clk 0:04:42.6]} 8. Nf3 {[%clk 0:04:46.6]} 8...
cxd4 {[%clk 0:04:39.4]} 9. cxd4 {[%clk 0:04:45.9]} 9... Bb4+ {[%clk 0:04:36.3]}
10. Bd2 {[%clk 0:04:45.3]} 10... Bxd2+ {[%clk 0:04:34.8]} 11. Qxd2 {[%clk
0:04:44.6]} 11... O-O {[%clk 0:04:32.3]} 12. O-O {[%clk 0:04:43]} 12... f6
{[%clk 0:04:28.4]} 13. exf6 {[%clk 0:04:39.8]} 13... Nxf6 {[%clk 0:04:27.2]} 14.
Nc3 {[%clk 0:04:36.7]} 14... Bd7 {[%clk 0:04:24.7]} 15. Rae1 {[%clk 0:04:25.3]}
15... Nb4 {[%clk 0:04:11.5]} 16. Bb1 {[%clk 0:04:23.5]} 16... Rac8 {[%clk
0:03:56.6]} 17. a3 {[%clk 0:04:12.6]} 17... Nc6 {[%clk 0:03:53.3]} 18. Na4
{[%clk 0:04:11.9]} 18... Qc7 {[%clk 0:03:50.8]} 19. Nc5 {[%clk 0:04:08.8]} 19...
Rfe8 {[%clk 0:03:42.6]} 20. b4 {[%clk 0:04:06.2]} 20... b6 {[%clk 0:03:40.4]}
21. Nxd7 {[%clk 0:04:00.9]} 21... Qxd7 {[%clk 0:03:39.3]} 22. Bd3 {[%clk
0:03:59.5]} 22... Ne7 {[%clk 0:03:26]} 23. Ne5 {[%clk 0:03:56.7]} 23... Qd6
{[%clk 0:03:19.4]} 24. g3 {[%clk 0:03:54.7]} 24... Nc6 {[%clk 0:03:16.3]} 25.
Bb5 {[%clk 0:03:52.1]} 25... Nxe5 {[%clk 0:02:57.1]} 26. dxe5 {[%clk 0:03:50.3]}
26... Qe7 {[%clk 0:02:33.8]} 27. exf6 {[%clk 0:03:49.5]} 27... Qxf6 {[%clk
0:02:32]} 28. Bxe8 {[%clk 0:03:48.4]} 28... Rxe8 {[%clk 0:02:31.2]} 29. Re3
{[%clk 0:03:47.4]} 29... Rf8 {[%clk 0:02:29.8]} 30. Rfe1 {[%clk 0:03:45.1]} 1-0

[Event "Live Chess"]
[Site "Chess.com"]
[Date "2024.06.01"]
[Round "-"]
[White "road2gm5000"]
[Black "WeakOldFinished"]
[Result "0-1"]
[WhiteElo "1079"]
[BlackElo "1636"]
[TimeControl "300"]
[EndTime "10:49:51 PDT"]
[Termination "WeakOldFinished won by resignation"]

1. Nf3 {[%clk 0:04:58.6]} 1... Nf6 {[%clk 0:04:55.7]} 2. d4 {[%clk 0:04:57.2]}
2... g6 {[%clk 0:04:54.1]} 3. Bg5 {[%clk 0:04:51.8]} 3... Bg7 {[%clk 0:04:52.3]}
4. c4 {[%clk 0:04:50.6]} 4... O-O {[%clk 0:04:49.9]} 5. e3 {[%clk 0:04:50.2]}
5... d6 {[%clk 0:04:48.8]} 6. Nc3 {[%clk 0:04:49.7]} 6... c5 {[%clk 0:04:38.1]}
7. Be2 {[%clk 0:04:42.3]} 7... Bf5 {[%clk 0:04:33.6]} 8. O-O {[%clk 0:04:39.2]}
8... Ne4 {[%clk 0:04:26.5]} 9. Nxe4 {[%clk 0:04:35.9]} 9... Bxe4 {[%clk
0:04:25.6]} 10. Nd2 {[%clk 0:04:33.5]} 10... Bf5 {[%clk 0:04:24]} 11. Nb3 {[%clk
0:04:32.6]} 11... cxd4 {[%clk 0:04:15.2]} 12. Nxd4 {[%clk 0:04:30.5]} 12... Bd7
{[%clk 0:04:14.2]} 13. Rc1 {[%clk 0:04:24.8]} 13... Nc6 {[%clk 0:04:12.7]} 14.
b3 {[%clk 0:04:12]} 14... Re8 {[%clk 0:04:09.3]} 15. Bg4 {[%clk 0:04:06.3]}
15... Bxg4 {[%clk 0:03:35.2]} 16. Qxg4 {[%clk 0:03:59.8]} 16... Qa5 {[%clk
0:03:33.9]} 17. Rc2 {[%clk 0:03:43.9]} 17... h5 {[%clk 0:03:18]} 18. Qg3 {[%clk
0:03:34.8]} 18... Rac8 {[%clk 0:03:14]} 19. h4 {[%clk 0:03:16]} 19... Nxd4
{[%clk 0:02:45.5]} 20. exd4 {[%clk 0:03:13.6]} 20... Bxd4 {[%clk 0:02:44.6]} 21.
Qf3 {[%clk 0:03:09.6]} 21... Qb6 {[%clk 0:02:42.1]} 22. Rd2 {[%clk 0:02:57]}
22... Bg7 {[%clk 0:02:39.1]} 23. Be3 {[%clk 0:02:47.5]} 23... Qc6 {[%clk
0:02:31.9]} 24. Qxc6 {[%clk 0:02:35.8]} 24... bxc6 {[%clk 0:02:31]} 25. Bxa7
{[%clk 0:02:35]} 25... c5 {[%clk 0:02:30.3]} 26. Bb6 {[%clk 0:02:28.4]} 26...
Rc6 {[%clk 0:02:29.2]} 27. Ba5 {[%clk 0:02:27.5]} 27... Ra8 {[%clk 0:02:28.1]}
28. b4 {[%clk 0:02:21.3]} 28... Bc3 {[%clk 0:02:26.3]} 29. Rc2 {[%clk
0:02:17.5]} 29... cxb4 {[%clk 0:02:24.7]} 30. Rxc3 {[%clk 0:02:14.3]} 30... bxc3
{[%clk 0:02:23.1]} 31. Bxc3 {[%clk 0:02:14]} 31... Rxa2 {[%clk 0:02:21]} 32. Bd4
{[%clk 0:02:09.8]} 32... Rxc4 {[%clk 0:02:18.5]} 33. Be3 {[%clk 0:02:08.1]}
33... Rca4 {[%clk 0:02:16.6]} 34. Kh2 {[%clk 0:02:06]} 34... f6 {[%clk
0:02:15.2]} 35. Rc1 {[%clk 0:02:04.7]} 35... Kf7 {[%clk 0:02:14.1]} 36. Rc7
{[%clk 0:02:02.7]} 36... Rxh4+ {[%clk 0:02:11.4]} 37. Kg3 {[%clk 0:02:01.4]}
37... Re4 {[%clk 0:02:08.5]} 38. Kf3 {[%clk 0:01:58.8]} 38... Re6 {[%clk
0:02:06.3]} 39. Bh6 {[%clk 0:01:54.3]} 39... g5 {[%clk 0:02:03.5]} 40. Rc8
{[%clk 0:01:51.2]} 40... Ra3+ {[%clk 0:02:00.4]} 0-1

[Event "Live Chess"]
[Site "Chess.com"]
[Date "2024.06.01"]
[Round "-"]
[White "chess5013"]
[Black "StoreySniper"]
[Result "0-1"]
[WhiteElo "1233"]
[BlackElo "2558"]
[TimeControl "300"]
[EndTime "10:49:54 PDT"]
[Termination "StoreySniper won by checkmate"]

1. d4 {[%clk 0:04:57]} 1... g6 {[%clk 0:04:59.9]} 2. e4 {[%clk 0:04:55.3]} 2...
Bg7 {[%clk 0:04:59.5]} 3. Nf3 {[%clk 0:04:54.3]} 3... c5 {[%clk 0:04:59.1]} 4.
e5 {[%clk 0:04:50.2]} 4... cxd4 {[%clk 0:04:57.8]} 5. Qxd4 {[%clk 0:04:46.8]}
5... Nc6 {[%clk 0:04:57]} 6. Qe3 {[%clk 0:04:42.2]} 6... Nxe5 {[%clk 0:04:52.6]}
7. Nxe5 {[%clk 0:04:40.9]} 7... Qa5+ {[%clk 0:04:51.8]} 8. Bd2 {[%clk
0:04:35.6]} 8... Qxe5 {[%clk 0:04:51.3]} 9. Qxe5 {[%clk 0:04:34]} 9... Bxe5
{[%clk 0:04:50]} 10. c3 {[%clk 0:04:32.7]} 10... b6 {[%clk 0:04:44.4]} 11. Bc4
{[%clk 0:04:29.6]} 11... Bb7 {[%clk 0:04:42.4]} 12. O-O {[%clk 0:04:27.9]} 12...
d5 {[%clk 0:04:32.8]} 13. Bb5+ {[%clk 0:04:19.9]} 13... Kf8 {[%clk 0:04:31.9]}
14. Be3 {[%clk 0:04:15.2]} 14... Kg7 {[%clk 0:04:28.3]} 15. Nd2 {[%clk 0:04:14]}
15... Nf6 {[%clk 0:04:22.4]} 16. Nf3 {[%clk 0:04:09.6]} 16... Bd6 {[%clk
0:04:20.5]} 17. Bd4 {[%clk 0:04:02.7]} 17... a6 {[%clk 0:04:13.9]} 18. Bd3
{[%clk 0:04:00.3]} 18... Bc5 {[%clk 0:04:08.7]} 19. Rfe1 {[%clk 0:03:55.5]}
19... Bxd4 {[%clk 0:04:04.9]} 20. Nxd4 {[%clk 0:03:53.7]} 20... e6 {[%clk
0:04:01.2]} 21. Rad1 {[%clk 0:03:49]} 21... b5 {[%clk 0:03:55.6]} 22. b3 {[%clk
0:03:37.6]} 22... Rhc8 {[%clk 0:03:51.3]} 23. Rc1 {[%clk 0:03:26.9]} 23... Nd7
{[%clk 0:03:43.1]} 24. c4 {[%clk 0:03:16]} 24... bxc4 {[%clk 0:03:39.5]} 25.
bxc4 {[%clk 0:03:14.4]} 25... dxc4 {[%clk 0:03:38.6]} 26. Bxc4 {[%clk
0:03:10.3]} 26... e5 {[%clk 0:03:18.1]} 27. Nf3 {[%clk 0:02:51.9]} 27... Bxf3
{[%clk 0:03:14.2]} 28. gxf3 {[%clk 0:02:50.3]} 28... Rc7 {[%clk 0:03:09.9]} 29.
Bd5 {[%clk 0:02:39.4]} 29... Rac8 {[%clk 0:03:04.3]} 30. Rxc7 {[%clk 0:02:30.2]}
30... Rxc7 {[%clk 0:03:03.2]} 31. Bb3 {[%clk 0:02:29.1]} 31... Rc5 {[%clk
0:02:55.2]} 32. Rd1 {[%clk 0:02:27.3]} 32... Nf6 {[%clk 0:02:49.6]} 33. Kg2
{[%clk 0:02:20.3]} 33... Nh5 {[%clk 0:02:45.2]} 34. Rd7 {[%clk 0:02:11.4]} 34...
Nf4+ {[%clk 0:02:35.1]} 35. Kg3 {[%clk 0:02:09.7]} 35... Rc1 {[%clk 0:02:23.3]}
36. Rd1 {[%clk 0:01:31.1]} 36... Rxd1 {[%clk 0:02:18.7]} 37. Bxd1 {[%clk
0:01:30]} 37... f5 {[%clk 0:02:15.6]} 38. Bb3 {[%clk 0:01:26.6]} 38... a5 {[%clk
0:02:14.5]} 39. a4 {[%clk 0:01:22.4]} 39... Kf6 {[%clk 0:02:12.9]} 40. Bc4
{[%clk 0:01:20.7]} 40... Ne6 {[%clk 0:02:07.9]} 41. h3 {[%clk 0:01:08.2]} 41...
f4+ {[%clk 0:02:04.7]} 42. Kg2 {[%clk 0:01:03.8]} 42... Nc5 {[%clk 0:02:01]} 43.
Bb5 {[%clk 0:01:01.5]} 43... g5 {[%clk 0:01:58.8]} 44. Kf1 {[%clk 0:00:58]}
44... Ke6 {[%clk 0:01:57.2]} 45. Ke2 {[%clk 0:00:56.8]} 45... Kd5 {[%clk
0:01:55.9]} 46. Kd1 {[%clk 0:00:48.3]} 46... Kd4 {[%clk 0:01:53.9]} 47. Kd2
{[%clk 0:00:47.3]} 47... h6 {[%clk 0:01:47.6]} 48. Ke2 {[%clk 0:00:40.9]} 48...
Kc3 {[%clk 0:01:45.3]} 49. Ke1 {[%clk 0:00:37]} 49... Kb4 {[%clk 0:01:40.6]} 50.
Kd2 {[%clk 0:00:33.2]} 50... Nxa4 {[%clk 0:01:38.7]} 51. Kd3 {[%clk 0:00:26.4]}
51... Kxb5 {[%clk 0:01:36.3]} 52. Ke4 {[%clk 0:00:24.8]} 52... Nc5+ {[%clk
0:01:34.6]} 53. Kxe5 {[%clk 0:00:24.5]} 53... a4 {[%clk 0:01:34.2]} 54. Kf5
{[%clk 0:00:24]} 54... a3 {[%clk 0:01:33.7]} 55. Kg6 {[%clk 0:00:23.6]} 55... a2
{[%clk 0:01:33.4]} 56. Kxh6 {[%clk 0:00:23.2]} 56... a1=Q {[%clk 0:01:33]} 57.
Kxg5 {[%clk 0:00:22.8]} 57... Qe5+ {[%clk 0:01:32.4]} 58. Kg4 {[%clk 0:00:21.5]}
58... Ne6 {[%clk 0:01:29.9]} 59. h4 {[%clk 0:00:20.7]} 59... Qg7+ {[%clk
0:01:29.3]} 60. Kh3 {[%clk 0:00:19.5]} 60... Qg1 {[%clk 0:01:27.6]} 61. h5
{[%clk 0:00:17.9]} 61... Nd4 {[%clk 0:01:25.2]} 62. h6 {[%clk 0:00:17]} 62...
Qxf2 {[%clk 0:01:23.9]} 63. h7 {[%clk 0:00:16.2]} 63... Qg3# {[%clk 0:01:22.2]}
0-1

[Event "Live Chess"]
[Site "Chess.com"]
[Date "2024.06.01"]
[Round "-"]
[White "booktrunk"]
[Black "ProfPoisson"]
[Result "1-0"]
[WhiteElo "1406"]
[BlackElo "1236"]
[TimeControl "300"]
[EndTime "10:50:22 PDT"]
[Termination "booktrunk won by checkmate"]

1. d4 {[%clk 0:04:54.6]} 1... e6 {[%clk 0:04:57.4]} 2. Nc3 {[%clk 0:04:54.5]}
2... f5 {[%clk 0:04:53.5]} 3. Bf4 {[%clk 0:04:54.4]} 3... Nf6 {[%clk 0:04:50.9]}
4. Nb5 {[%clk 0:04:53]} 4... d6 {[%clk 0:04:38.7]} 5. e3 {[%clk 0:04:48.2]} 5...
Be7 {[%clk 0:04:36.3]} 6. h4 {[%clk 0:04:42.8]} 6... a6 {[%clk 0:04:29.5]} 7.
Nc3 {[%clk 0:04:40.6]} 7... b6 {[%clk 0:04:22.2]} 8. Be2 {[%clk 0:04:34.8]} 8...
Bb7 {[%clk 0:04:20.7]} 9. Bf3 {[%clk 0:04:33.5]} 9... Ne4 {[%clk 0:04:16.3]} 10.
Nxe4 {[%clk 0:04:29.3]} 10... fxe4 {[%clk 0:04:07.2]} 11. Bg4 {[%clk 0:04:26.7]}
11... O-O {[%clk 0:04:07.1]} 12. Bxe6+ {[%clk 0:04:24.1]} 12... Kh8 {[%clk
0:04:04.9]} 13. Qh5 {[%clk 0:04:13.8]} 13... Bf6 {[%clk 0:03:53.8]} 14. Nh3
{[%clk 0:04:09.2]} 14... Qe7 {[%clk 0:03:49.5]} 15. Bc4 {[%clk 0:03:54.4]} 15...
b5 {[%clk 0:03:31.7]} 16. Be2 {[%clk 0:03:50.5]} 16... Nd7 {[%clk 0:03:28]} 17.
g4 {[%clk 0:03:42.7]} 17... g6 {[%clk 0:03:10.6]} 18. Qh6 {[%clk 0:03:40.9]}
18... Bg7 {[%clk 0:03:08.1]} 19. Qg5 {[%clk 0:03:39.1]} 19... Bf6 {[%clk
0:03:06]} 20. Qh6 {[%clk 0:03:36]} 20... Bg7 {[%clk 0:02:41.7]} 21. Qg5 {[%clk
0:03:32]} 21... Nf6 {[%clk 0:02:32.4]} 22. h5 {[%clk 0:03:23.5]} 22... h6 {[%clk
0:02:29.9]} 23. Qxg6 {[%clk 0:03:12.4]} 23... Bc6 {[%clk 0:02:01.9]} 24. Bxh6
{[%clk 0:03:08.7]} 24... Be8 {[%clk 0:01:56.3]} 25. Bxg7+ {[%clk 0:03:04.8]}
25... Qxg7 {[%clk 0:01:52.9]} 26. Qxg7+ {[%clk 0:02:58.9]} 26... Kxg7 {[%clk
0:01:52.8]} 27. Ng5 {[%clk 0:02:56.7]} 27... Bd7 {[%clk 0:01:45.9]} 28. O-O-O
{[%clk 0:02:28.7]} 28... Nxg4 {[%clk 0:01:35]} 29. Nxe4 {[%clk 0:02:22.5]} 29...
Nxf2 {[%clk 0:01:26.4]} 30. Rdg1+ {[%clk 0:02:20.4]} 30... Kh6 {[%clk
0:01:15.4]} 31. Rg6+ {[%clk 0:02:12.5]} 31... Kh7 {[%clk 0:01:11.3]} 32. Rhg1
{[%clk 0:02:05.7]} 32... Nxe4 {[%clk 0:01:00.9]} 33. Rg7+ {[%clk 0:02:00.2]}
33... Kh8 {[%clk 0:00:57.7]} 34. Bd3 {[%clk 0:01:58.8]} 34... Bf5 {[%clk
0:00:37.1]} 35. h6 {[%clk 0:01:46.5]} 35... Rae8 {[%clk 0:00:28]} 36. Rxc7
{[%clk 0:01:41]} 36... Bh7 {[%clk 0:00:16.3]} 37. a3 {[%clk 0:01:34.8]} 37...
Nf2 {[%clk 0:00:15]} 38. Rxh7# {[%clk 0:01:29.6]} 1-0

[Event "Live Chess"]
[Site "Chess.com"]
[Date "2024.06.01"]
[Round "-"]
[White "GoldsmanB"]
[Black "NottheBishopSacrifice"]
[Result "0-1"]
[WhiteElo "1045"]
[BlackElo "2221"]
[TimeControl "300"]
[EndTime "10:50:32 PDT"]
[Termination "NottheBishopSacrifice won by checkmate"]

1. d4 {[%clk 0:04:58.9]} 1... d5 {[%clk 0:04:58.7]} 2. Bf4 {[%clk 0:04:55.6]}
2... e6 {[%clk 0:04:58.6]} 3. e3 {[%clk 0:04:54.4]} 3... Bd6 {[%clk 0:04:58.1]}
4. Bg3 {[%clk 0:04:52.1]} 4... Nf6 {[%clk 0:04:56.5]} 5. Nf3 {[%clk 0:04:51]}
5... O-O {[%clk 0:04:55.2]} 6. c3 {[%clk 0:04:50.1]} 6... c5 {[%clk 0:04:54.5]}
7. Nbd2 {[%clk 0:04:48]} 7... Nc6 {[%clk 0:04:54.1]} 8. Be2 {[%clk 0:04:46.6]}
8... b6 {[%clk 0:04:53.8]} 9. Qc2 {[%clk 0:04:45.5]} 9... Bb7 {[%clk 0:04:53.4]}
10. O-O-O {[%clk 0:04:42.1]} 10... Qc7 {[%clk 0:04:52.3]} 11. c4 {[%clk
0:04:35.9]} 11... Nb4 {[%clk 0:04:41.4]} 12. Qb3 {[%clk 0:04:27]} 12... cxd4
{[%clk 0:04:40.1]} 13. Nxd4 {[%clk 0:04:19]} 13... Bxg3 {[%clk 0:04:33.6]} 14.
hxg3 {[%clk 0:04:16.2]} 14... dxc4 {[%clk 0:04:33]} 15. Qxb4 {[%clk 0:04:04.6]}
15... Nd5 {[%clk 0:04:29.9]} 16. Qxc4 {[%clk 0:04:00.7]} 16... Qe7 {[%clk
0:04:29.5]} 17. f3 {[%clk 0:03:54.8]} 17... Rac8 {[%clk 0:04:27]} 18. Qxc8
{[%clk 0:03:48.5]} 18... Rxc8+ {[%clk 0:04:26.9]} 19. Kb1 {[%clk 0:03:47]} 19...
Nxe3 {[%clk 0:04:25]} 20. Rc1 {[%clk 0:03:43.5]} 20... Rxc1+ {[%clk 0:04:22.6]}
21. Rxc1 {[%clk 0:03:41.2]} 21... g6 {[%clk 0:04:22.3]} 22. Nb5 {[%clk
0:03:31.4]} 22... Qb4 {[%clk 0:04:19.6]} 23. Ne4 {[%clk 0:03:19.3]} 23... Bxe4+
{[%clk 0:04:17.2]} 24. fxe4 {[%clk 0:03:19.2]} 24... Qxe4+ {[%clk 0:04:16.1]}
25. Ka1 {[%clk 0:03:17.7]} 25... Nc2+ {[%clk 0:04:15.7]} 26. Kb1 {[%clk
0:03:15.8]} 26... Na3+ {[%clk 0:04:15.3]} 27. Ka1 {[%clk 0:03:14]} 27... Qb1+
{[%clk 0:04:14.9]} 28. Rxb1 {[%clk 0:03:10.9]} 28... Nc2# {[%clk 0:04:14.6]} 0-1

[Event "Live Chess"]
[Site "Chess.com"]
[Date "2024.06.01"]
[Round "-"]
[White "elephantgerrald"]
[Black "AnotherOneBadPlayer"]
[Result "0-1"]
[WhiteElo "756"]
[BlackElo "2225"]
[TimeControl "300"]
[EndTime "10:50:43 PDT"]
[Termination "AnotherOneBadPlayer won on time"]

1. e4 {[%clk 0:04:55]} 1... e6 {[%clk 0:04:53.5]} 2. d4 {[%clk 0:04:53.5]} 2...
d5 {[%clk 0:04:52]} 3. e5 {[%clk 0:04:52.5]} 3... c5 {[%clk 0:04:49.7]} 4. dxc5
{[%clk 0:04:49.4]} 4... Bxc5 {[%clk 0:04:41.5]} 5. Bb5+ {[%clk 0:04:43.3]} 5...
Nc6 {[%clk 0:04:40]} 6. Qf3 {[%clk 0:04:39.6]} 6... Ne7 {[%clk 0:04:32.1]} 7.
Nc3 {[%clk 0:04:37.8]} 7... Bd7 {[%clk 0:04:26.3]} 8. Qg3 {[%clk 0:04:35.1]}
8... Nf5 {[%clk 0:04:18.8]} 9. Qg4 {[%clk 0:04:25.8]} 9... Nxe5 {[%clk
0:04:14.1]} 10. Bxd7+ {[%clk 0:04:22.2]} 10... Qxd7 {[%clk 0:04:11]} 11. Qg5
{[%clk 0:04:13.5]} 11... h6 {[%clk 0:03:47.6]} 12. Qd2 {[%clk 0:03:55.9]} 12...
O-O {[%clk 0:03:21.3]} 13. b3 {[%clk 0:03:47.2]} 13... Bb4 {[%clk 0:03:13]} 14.
Bb2 {[%clk 0:03:43.4]} 14... Rac8 {[%clk 0:03:05.3]} 15. O-O-O {[%clk
0:03:38.6]} 15... Nd6 {[%clk 0:02:46.9]} 16. Nf3 {[%clk 0:03:26.3]} 16... Nxf3
{[%clk 0:02:43.4]} 17. gxf3 {[%clk 0:03:24.1]} 17... Nb5 {[%clk 0:02:41.9]} 18.
Rhg1 {[%clk 0:03:19.5]} 18... Nxc3 {[%clk 0:02:39.4]} 19. Qxh6 {[%clk
0:03:10.2]} 19... f6 {[%clk 0:02:29.8]} 20. Bxc3 {[%clk 0:03:06.5]} 20... Bxc3
{[%clk 0:02:21.4]} 21. Rd3 {[%clk 0:03:04.6]} 21... Rf7 {[%clk 0:02:05.3]} 22.
f4 {[%clk 0:02:48.4]} 22... Qd6 {[%clk 0:01:51.9]} 23. Rh3 {[%clk 0:02:41.6]}
23... Kf8 {[%clk 0:01:31.4]} 24. Qh8+ {[%clk 0:02:38.8]} 24... Ke7 {[%clk
0:01:26.6]} 25. Qxc8 {[%clk 0:02:35.9]} 25... Qxf4+ {[%clk 0:01:15.6]} 26. Re3
{[%clk 0:02:31.2]} 26... Be5 {[%clk 0:01:08.6]} 27. Qxb7+ {[%clk 0:02:26.9]}
27... Bc7 {[%clk 0:01:07.4]} 28. Rg4 {[%clk 0:02:08.6]} 28... Qxh2 {[%clk
0:00:58.6]} 29. Qb4+ {[%clk 0:01:56.3]} 29... Qd6 {[%clk 0:00:55.5]} 30. Qb7
{[%clk 0:01:49]} 30... g5 {[%clk 0:00:50.7]} 31. Ra4 {[%clk 0:01:33.7]} 31...
Qc5 {[%clk 0:00:44.5]} 32. Rxa7 {[%clk 0:01:23.8]} 32... Kf8 {[%clk 0:00:43.2]}
33. Qc8+ {[%clk 0:01:18.7]} 33... Kg7 {[%clk 0:00:42.2]} 34. Ra8 {[%clk
0:00:42.7]} 34... Rf8 {[%clk 0:00:36.4]} 35. Qd7+ {[%clk 0:00:29.1]} 35... Rf7
{[%clk 0:00:31.2]} 36. Qxe6 {[%clk 0:00:15.4]} 36... Bf4 {[%clk 0:00:28.2]} 37.
Rg8+ {[%clk 0:00:10.9]} 37... Kxg8 {[%clk 0:00:26.6]} 38. Qe8+ {[%clk
0:00:09.7]} 38... Kg7 {[%clk 0:00:26]} 39. Kb2 {[%clk 0:00:04.1]} 39... Bxe3
{[%clk 0:00:24.4]} 40. fxe3 {[%clk 0:00:03]} 40... Qe7 {[%clk 0:00:22.2]} 41.
Qb5 {[%clk 0:00:01.5]} 41... Qe5+ {[%clk 0:00:21.1]} 0-1